[Event "Titled Tuesday Blitz June 21 Early 2022"]
[White "De Souza, Cristiano Gomes"]
[Black "Clarke, Brandon G I"]
[WhiteFideId "2151758"]
[BlackFideId "400319"]
[WhiteElo "2068"]
[BlackElo "2414"]
[Result "0-1"]
[Round "04"]
[TimeControl "180+1"]
[Date "2022.06.21"]
[WhiteClock "0:00:16"]
[BlackClock "0:00:08"]

1. d4 {[%clk 0:03:00]}  Nf6 {[%clk 0:02:58]} 2. c4 {[%clk 0:03:00]}  g6 {[%clk 0:02:58]} 3. Nc3 {[%clk 0:03:00]}  Bg7 {[%clk 0:02:59]} 4. e4 {[%clk 0:02:59]}  d6 {[%clk 0:03:00]} 5. Nf3 {[%clk 0:02:58]}  O-O {[%clk 0:03:01]} 6. Be2 {[%clk 0:02:59]}  e5 {[%clk 0:03:01]} 7. O-O {[%clk 0:02:59]}  Na6 {[%clk 0:03:00]} 8. d5 {[%clk 0:03:00]}  Nc5 {[%clk 0:03:00]} 9. Nd2 {[%clk 0:03:00]}  a5 {[%clk 0:03:00]} 10. Qc2 {[%clk 0:03:00]}  c6 {[%clk 0:02:55]} 11. b3 {[%clk 0:03:01]}  cxd5 {[%clk 0:02:56]} 12. cxd5 {[%clk 0:03:00]}  Bd7 {[%clk 0:02:56]} 13. Nc4 {[%clk 0:02:49]}  Ne8 {[%clk 0:02:41]} 14. Be3 {[%clk 0:02:45]}  Rc8 {[%clk 0:02:40]} 15. a4 {[%clk 0:02:35]}  f5 {[%clk 0:02:38]} 16. f3 {[%clk 0:02:34]}  Qc7 {[%clk 0:02:03]} 17. Nb5 {[%clk 0:02:32]}  Bxb5 {[%clk 0:02:02]} 18. axb5 {[%clk 0:02:31]}  b6 {[%clk 0:02:02]} 19. Rac1 {[%clk 0:02:27]}  Nf6 {[%clk 0:01:59]} 20. exf5 {[%clk 0:02:10]}  Nxd5 {[%clk 0:01:59]} 21. fxg6 {[%clk 0:02:05]}  Nxe3 {[%clk 0:02:00]} 22. gxh7+ {[%clk 0:02:03]}  Kh8 {[%clk 0:02:00]} 23. Nxe3 {[%clk 0:02:03]}  Bh6 {[%clk 0:02:01]} 24. Qc3 {[%clk 0:01:54]}  Qxh7 {[%clk 0:01:58]} 25. Rcd1 {[%clk 0:01:48]}  Ne6 {[%clk 0:01:54]} 26. Qd3 {[%clk 0:01:45]}  Nd4 {[%clk 0:01:51]} 27. Ng4 {[%clk 0:01:40]}  Bg5 {[%clk 0:01:20]} 28. Rfe1 {[%clk 0:01:27]}  Qxd3 {[%clk 0:01:08]} 29. Rxd3 {[%clk 0:01:20]}  Nxb5 {[%clk 0:01:02]} 30. Rd5 {[%clk 0:01:14]}  Rc5 {[%clk 0:01:01]} 31. Rxc5 {[%clk 0:01:12]}  bxc5 {[%clk 0:01:01]} 32. Bxb5 {[%clk 0:01:12]}  Rb8 {[%clk 0:00:59]} 33. Bc4 {[%clk 0:01:11]}  Rb4 {[%clk 0:00:59]} 34. Rd1 {[%clk 0:01:09]}  a4 {[%clk 0:00:54]} 35. Rxd6 {[%clk 0:00:46]}  axb3 {[%clk 0:00:54]} 36. Bxb3 {[%clk 0:00:32]}  Rxb3 {[%clk 0:00:55]} 37. Rd5 {[%clk 0:00:29]}  c4 {[%clk 0:00:53]} 38. Rxe5 {[%clk 0:00:27]}  Bd2 {[%clk 0:00:47]} 39. Kf1 {[%clk 0:00:25]}  Rb2 {[%clk 0:00:35]} 40. Rc5 {[%clk 0:00:22]}  c3 {[%clk 0:00:35]} 41. Ne5 {[%clk 0:00:19]}  Ra2 {[%clk 0:00:18]} 42. Nd3 {[%clk 0:00:18]}  Kg7 {[%clk 0:00:18]} 43. Ke2 {[%clk 0:00:18]}  Kf6 {[%clk 0:00:18]} 44. Nb4 {[%clk 0:00:15]}  Rb2 {[%clk 0:00:18]} 45. Nd3 {[%clk 0:00:14]}  Ra2 {[%clk 0:00:18]} 46. Nb4 {[%clk 0:00:14]}  Ra1 {[%clk 0:00:18]} 47. Kd3 {[%clk 0:00:13]}  Ke6 {[%clk 0:00:18]} 48. Nc2 {[%clk 0:00:13]}  Rg1 {[%clk 0:00:16]} 49. Rc4 {[%clk 0:00:13]}  Rxg2 {[%clk 0:00:16]} 50. Re4+ {[%clk 0:00:13]}  Kd5 {[%clk 0:00:16]} 51. Re2 {[%clk 0:00:13]}  Rg1 {[%clk 0:00:16]} 52. Ne3+ {[%clk 0:00:13]}  Kc5 {[%clk 0:00:16]} 53. Nd1 {[%clk 0:00:12]}  Kb4 {[%clk 0:00:16]} 54. Kc2 {[%clk 0:00:12]}  Rh1 {[%clk 0:00:14]} 55. Rxd2 {[%clk 0:00:12]}  cxd2 {[%clk 0:00:14]} 56. Kxd2 {[%clk 0:00:13]}  Rxh2+ {[%clk 0:00:15]} 57. Kd3 {[%clk 0:00:13]}  Kc5 {[%clk 0:00:15]} 58. Ne3 {[%clk 0:00:14]}  Kd6 {[%clk 0:00:15]} 59. f4 {[%clk 0:00:14]}  Ke6 {[%clk 0:00:15]} 60. Ke4 {[%clk 0:00:15]}  Ra2 {[%clk 0:00:14]} 61. f5+ {[%clk 0:00:14]}  Kf7 {[%clk 0:00:15]} 62. Kf4 {[%clk 0:00:15]}  Ra4+ {[%clk 0:00:15]} 63. Ke5 {[%clk 0:00:16]}  Ra5+ {[%clk 0:00:15]} 64. Nd5 {[%clk 0:00:16]}  Rb5 {[%clk 0:00:15]} 65. f6 {[%clk 0:00:16]}  Rb1 {[%clk 0:00:13]} 66. Kd6 {[%clk 0:00:16]}  Re1 {[%clk 0:00:13]} 67. Kc5 {[%clk 0:00:16]}  Ke6 {[%clk 0:00:12]} 68. Nc3 {[%clk 0:00:15]}  Kxf6 {[%clk 0:00:11]} 69. Kc4 {[%clk 0:00:16]}  Ke5 {[%clk 0:00:11]} 70. Nb5 {[%clk 0:00:16]}  Rc1+ {[%clk 0:00:11]} 71. Nc3 {[%clk 0:00:16]}  Rh1 {[%clk 0:00:09]} 72. Kd3 {[%clk 0:00:16]}  Rh8 {[%clk 0:00:10]} 73. Kc4 {[%clk 0:00:16]}  Rc8+ {[%clk 0:00:09]} 74. Kd3 {[%clk 0:00:16]}  Rc7 {[%clk 0:00:09]} 75. Ne2 {[%clk 0:00:16]}  Rh7 {[%clk 0:00:07]} 76. Ke3 {[%clk 0:00:16]}  Rh3+ {[%clk 0:00:07]} 77. Kf2 {[%clk 0:00:17]}  Ra3 {[%clk 0:00:06]} 78. Nc1 {[%clk 0:00:15]}  Ke4 {[%clk 0:00:06]} 79. Ne2 {[%clk 0:00:15]}  Ra2 {[%clk 0:00:06]} 80. Ke1 {[%clk 0:00:15]}  Ke3 {[%clk 0:00:06]} 81. Nc3 {[%clk 0:00:16]}  Ra1+ {[%clk 0:00:06]} 82. Nd1+ {[%clk 0:00:16]}  Kd3 {[%clk 0:00:07]} 83. Kf2 {[%clk 0:00:16]}  Rxd1 {[%clk 0:00:08]} 84. Kf3 {[%clk 0:00:16]}  Rf1+ {[%clk 0:00:08]} 85. Kg2 {[%clk 0:00:16]}  Rf4 {[%clk 0:00:07]} 86. Kg3 {[%clk 0:00:16]}  Ke3 {[%clk 0:00:08]} 0-1


[Site "https://www.chess.com"]

[Event "Titled Tuesday Blitz June 21 Early 2022"]
[White "Devaev, Alexander"]
[Black "Yuan, Qingyu"]
[WhiteFideId "4169395"]
[BlackFideId "8609772"]
[WhiteElo "2185"]
[BlackElo "2359"]
[Result "0-1"]
[Round "04"]
[TimeControl "180+1"]
[Date "2022.06.21"]
[WhiteClock "0:00:07"]
[BlackClock "0:00:59"]

1. d4 {[%clk 0:02:56]}  d5 {[%clk 0:03:00]} 2. Nf3 {[%clk 0:02:55]}  Nf6 {[%clk 0:03:00]} 3. c4 {[%clk 0:02:56]}  e6 {[%clk 0:03:00]} 4. Nc3 {[%clk 0:02:56]}  a6 {[%clk 0:03:01]} 5. cxd5 {[%clk 0:02:55]}  exd5 {[%clk 0:03:01]} 6. Bg5 {[%clk 0:02:56]}  Be6 {[%clk 0:03:01]} 7. e3 {[%clk 0:02:56]}  Nbd7 {[%clk 0:03:01]} 8. Bd3 {[%clk 0:02:57]}  Bd6 {[%clk 0:03:01]} 9. Qc2 {[%clk 0:02:57]}  c6 {[%clk 0:02:53]} 10. O-O {[%clk 0:02:55]}  h6 {[%clk 0:02:44]} 11. Bh4 {[%clk 0:02:56]}  Qc7 {[%clk 0:02:45]} 12. Bg3 {[%clk 0:02:53]}  Bxg3 {[%clk 0:02:45]} 13. hxg3 {[%clk 0:02:52]}  O-O {[%clk 0:02:45]} 14. Na4 {[%clk 0:02:45]}  Bg4 {[%clk 0:02:34]} 15. Rfc1 {[%clk 0:02:43]}  Rfe8 {[%clk 0:02:30]} 16. Nc5 {[%clk 0:02:42]}  Nxc5 {[%clk 0:02:30]} 17. Qxc5 {[%clk 0:02:43]}  Bxf3 {[%clk 0:02:15]} 18. gxf3 {[%clk 0:02:41]}  Rxe3 {[%clk 0:02:15]} 19. fxe3 {[%clk 0:01:36]}  Qxg3+ {[%clk 0:02:14]} 20. Kf1 {[%clk 0:01:37]}  Qxf3+ {[%clk 0:02:15]} 21. Ke1 {[%clk 0:01:37]}  Qxe3+ {[%clk 0:01:58]} 22. Be2 {[%clk 0:01:36]}  Qg1+ {[%clk 0:01:49]} 23. Kd2 {[%clk 0:01:01]}  Ne4+ {[%clk 0:01:47]} 24. Kc2 {[%clk 0:01:01]}  Qe3 {[%clk 0:01:39]} 25. Qb4 {[%clk 0:00:37]}  Qxe2+ {[%clk 0:01:26]} 26. Kb3 {[%clk 0:00:38]}  Nd2+ {[%clk 0:01:03]} 27. Ka4 {[%clk 0:00:10]}  b5+ {[%clk 0:01:01]} 28. Ka3 {[%clk 0:00:09]}  Nc4+ {[%clk 0:01:01]} 29. Rxc4 {[%clk 0:00:09]}  Qxc4 {[%clk 0:01:00]} 30. Qxc4 {[%clk 0:00:07]}  dxc4 {[%clk 0:00:59]} 0-1


[Site "https://www.chess.com"]

[Event "Titled Tuesday Blitz June 21 Early 2022"]
[White "Do Nascimento,Christian Almeida"]
[Black "Dwilewicz, Katarzyna"]
[WhiteFideId "2143801"]
[BlackFideId "1148486"]
[WhiteElo "2085"]
[BlackElo "1907"]
[Result "0-1"]
[Round "04"]
[TimeControl "180+1"]
[Date "2022.06.21"]
[WhiteClock "0:00:23"]
[BlackClock "0:00:38"]

1. d4 {[%clk 0:02:59]}  d5 {[%clk 0:02:57]} 2. Nf3 {[%clk 0:02:57]}  Nf6 {[%clk 0:02:56]} 3. c4 {[%clk 0:02:57]}  dxc4 {[%clk 0:02:56]} 4. e3 {[%clk 0:02:53]}  e6 {[%clk 0:02:56]} 5. Bxc4 {[%clk 0:02:53]}  c5 {[%clk 0:02:57]} 6. O-O {[%clk 0:02:52]}  a6 {[%clk 0:02:56]} 7. a4 {[%clk 0:02:48]}  Nc6 {[%clk 0:02:56]} 8. Nc3 {[%clk 0:02:47]}  Be7 {[%clk 0:02:51]} 9. dxc5 {[%clk 0:02:30]}  Qxd1 {[%clk 0:02:49]} 10. Rxd1 {[%clk 0:02:31]}  Bxc5 {[%clk 0:02:50]} 11. e4 {[%clk 0:02:30]}  h6 {[%clk 0:02:36]} 12. Bf4 {[%clk 0:02:27]}  g5 {[%clk 0:02:26]} 13. Bd6 {[%clk 0:02:15]}  Bxd6 {[%clk 0:02:26]} 14. Rxd6 {[%clk 0:02:16]}  Ke7 {[%clk 0:02:27]} 15. Rad1 {[%clk 0:02:14]}  Rd8 {[%clk 0:02:20]} 16. e5 {[%clk 0:02:10]}  Ne8 {[%clk 0:02:14]} 17. Rxd8 {[%clk 0:02:05]}  Nxd8 {[%clk 0:02:14]} 18. Nd4 {[%clk 0:01:57]}  b6 {[%clk 0:02:04]} 19. b4 {[%clk 0:01:48]}  Bb7 {[%clk 0:02:03]} 20. b5 {[%clk 0:01:43]}  a5 {[%clk 0:01:57]} 21. Bd3 {[%clk 0:01:37]}  Rc8 {[%clk 0:01:57]} 22. Ne4 {[%clk 0:01:37]}  Bd5 {[%clk 0:01:53]} 23. Ne2 {[%clk 0:01:25]}  Bb3 {[%clk 0:01:45]} 24. Ra1 {[%clk 0:01:20]}  Nb7 {[%clk 0:01:43]} 25. h4 {[%clk 0:01:17]}  gxh4 {[%clk 0:01:41]} 26. Nd4 {[%clk 0:01:08]}  Bd5 {[%clk 0:01:40]} 27. f4 {[%clk 0:01:02]}  Nc5 {[%clk 0:01:40]} 28. Nxc5 {[%clk 0:00:58]}  bxc5 {[%clk 0:01:39]} 29. Nc2 {[%clk 0:00:54]}  c4 {[%clk 0:01:38]} 30. Be2 {[%clk 0:00:55]}  Ng7 {[%clk 0:01:35]} 31. Ne3 {[%clk 0:00:51]}  Nf5 {[%clk 0:01:28]} 32. Nxf5+ {[%clk 0:00:50]}  exf5 {[%clk 0:01:27]} 33. Rc1 {[%clk 0:00:50]}  Rg8 {[%clk 0:01:20]} 34. Bxc4 {[%clk 0:00:41]}  Rxg2+ {[%clk 0:01:20]} 35. Kf1 {[%clk 0:00:41]}  Be4 {[%clk 0:01:05]} 36. Bd3 {[%clk 0:00:34]}  Rb2 {[%clk 0:00:57]} 37. Bxe4 {[%clk 0:00:28]}  fxe4 {[%clk 0:00:56]} 38. Rc7+ {[%clk 0:00:27]}  Ke6 {[%clk 0:00:54]} 39. Rc6+ {[%clk 0:00:27]}  Kf5 {[%clk 0:00:48]} 40. Rf6+ {[%clk 0:00:26]}  Kg4 {[%clk 0:00:48]} 41. Rxf7 {[%clk 0:00:27]}  Kf3 {[%clk 0:00:47]} 42. Kg1 {[%clk 0:00:27]}  e3 {[%clk 0:00:44]} 43. Rc7 {[%clk 0:00:23]}  Rb1+ {[%clk 0:00:38]} 44. Kh2 {[%clk 0:00:23]}  e2 {[%clk 0:00:38]} 0-1


[Site "https://www.chess.com"]

[Event "Titled Tuesday Blitz June 21 Early 2022"]
[White "Dobre, Claudiu-Cristian"]
[Black "Li, Zhuoling"]
[WhiteFideId "1211854"]
[BlackFideId "8605629"]
[WhiteElo "2207"]
[BlackElo "2312"]
[Result "1-0"]
[Round "04"]
[TimeControl "180+1"]
[Date "2022.06.21"]
[WhiteClock "0:01:02"]
[BlackClock "0:00:01"]

1. c4 {[%clk 0:03:00]}  Nf6 {[%clk 0:02:59]} 2. Nc3 {[%clk 0:03:00]}  d5 {[%clk 0:02:58]} 3. cxd5 {[%clk 0:02:59]}  Nxd5 {[%clk 0:02:59]} 4. e4 {[%clk 0:03:00]}  Nxc3 {[%clk 0:02:58]} 5. dxc3 {[%clk 0:03:00]}  Qxd1+ {[%clk 0:02:57]} 6. Kxd1 {[%clk 0:03:01]}  e5 {[%clk 0:02:56]} 7. Be3 {[%clk 0:03:01]}  Be6 {[%clk 0:02:49]} 8. Nf3 {[%clk 0:03:01]}  Nd7 {[%clk 0:02:48]} 9. Ng5 {[%clk 0:02:59]}  Bg4+ {[%clk 0:02:41]} 10. f3 {[%clk 0:02:59]}  Bh5 {[%clk 0:02:41]} 11. g4 {[%clk 0:02:58]}  Bg6 {[%clk 0:02:41]} 12. h4 {[%clk 0:02:56]}  h6 {[%clk 0:02:24]} 13. Nh3 {[%clk 0:02:55]}  h5 {[%clk 0:02:19]} 14. g5 {[%clk 0:02:51]}  Bc5 {[%clk 0:02:14]} 15. Bxc5 {[%clk 0:02:43]}  Nxc5 {[%clk 0:02:14]} 16. Bc4 {[%clk 0:02:43]}  Rd8+ {[%clk 0:02:01]} 17. Ke2 {[%clk 0:02:43]}  c6 {[%clk 0:01:41]} 18. a4 {[%clk 0:02:39]}  Ke7 {[%clk 0:01:39]} 19. Rhg1 {[%clk 0:02:38]}  b6 {[%clk 0:01:33]} 20. b4 {[%clk 0:02:27]}  Ne6 {[%clk 0:01:31]} 21. Bxe6 {[%clk 0:02:27]}  Kxe6 {[%clk 0:01:29]} 22. Nf2 {[%clk 0:02:25]}  f5 {[%clk 0:01:20]} 23. gxf6 {[%clk 0:02:25]}  Kxf6 {[%clk 0:01:20]} 24. Rg5 {[%clk 0:02:25]}  Bf7 {[%clk 0:01:15]} 25. Ke3 {[%clk 0:02:18]}  Rd6 {[%clk 0:01:06]} 26. Rf5+ {[%clk 0:02:13]}  Ke6 {[%clk 0:01:00]} 27. Nd3 {[%clk 0:02:13]}  g6 {[%clk 0:00:55]} 28. Rg5 {[%clk 0:02:05]}  Rhd8 {[%clk 0:00:45]} 29. Nxe5 {[%clk 0:02:04]}  Kf6 {[%clk 0:00:43]} 30. a5 {[%clk 0:01:50]}  b5 {[%clk 0:00:40]} 31. Rag1 {[%clk 0:01:48]}  Be8 {[%clk 0:00:30]} 32. Kf4 {[%clk 0:01:21]}  Ke7 {[%clk 0:00:07]} 33. Nxg6+ {[%clk 0:01:06]}  Bxg6 {[%clk 0:00:06]} 34. Rxg6 {[%clk 0:01:06]}  Rf8+ {[%clk 0:00:06]} 35. Ke3 {[%clk 0:01:06]}  Rxg6 {[%clk 0:00:03]} 36. Rxg6 {[%clk 0:01:06]}  Rf7 {[%clk 0:00:03]} 37. Rxc6 {[%clk 0:01:05]}  Kd8 {[%clk 0:00:02]} 38. Rc5 {[%clk 0:01:03]}  a6 {[%clk 0:00:01]} 39. Rxh5 {[%clk 0:01:02]} 1-0


[Site "https://www.chess.com"]

[Event "Titled Tuesday Blitz June 21 Early 2022"]
[White "Dobrikov, Marco"]
[Black "Bachmann, Axel"]
[WhiteFideId "12950378"]
[BlackFideId "3700488"]
[WhiteElo "2101"]
[BlackElo "2587"]
[Result "0-1"]
[Round "04"]
[TimeControl "180+1"]
[Date "2022.06.21"]
[WhiteClock "0:01:28"]
[BlackClock "0:00:27"]

1. e4 {[%clk 0:03:00]}  c5 {[%clk 0:02:51]} 2. Nf3 {[%clk 0:03:00]}  e6 {[%clk 0:02:49]} 3. d4 {[%clk 0:03:00]}  cxd4 {[%clk 0:02:49]} 4. Nxd4 {[%clk 0:03:01]}  Nc6 {[%clk 0:02:48]} 5. Nc3 {[%clk 0:03:01]}  Qc7 {[%clk 0:02:48]} 6. Be3 {[%clk 0:03:01]}  a6 {[%clk 0:02:43]} 7. Bd3 {[%clk 0:03:01]}  Nf6 {[%clk 0:02:41]} 8. O-O {[%clk 0:03:00]}  h5 {[%clk 0:02:41]} 9. h3 {[%clk 0:02:59]}  b5 {[%clk 0:02:40]} 10. Nxc6 {[%clk 0:02:55]}  Qxc6 {[%clk 0:02:41]} 11. e5 {[%clk 0:02:55]}  Bb7 {[%clk 0:02:41]} 12. f3 {[%clk 0:02:54]}  Nd5 {[%clk 0:02:15]} 13. Be4 {[%clk 0:02:54]}  Nxc3 {[%clk 0:02:01]} 14. Bxc6 {[%clk 0:02:54]}  Nxd1 {[%clk 0:02:01]} 15. Bxb7 {[%clk 0:02:54]}  Nxe3 {[%clk 0:02:02]} 16. Bxa8 {[%clk 0:02:54]}  Bc5 {[%clk 0:01:28]} 17. Kh1 {[%clk 0:02:54]}  Nxf1 {[%clk 0:01:27]} 18. Rxf1 {[%clk 0:02:55]}  Ke7 {[%clk 0:01:27]} 19. Bb7 {[%clk 0:02:53]}  Rb8 {[%clk 0:01:26]} 20. Be4 {[%clk 0:02:50]}  Bd4 {[%clk 0:01:26]} 21. f4 {[%clk 0:02:46]}  Bxb2 {[%clk 0:01:26]} 22. Rd1 {[%clk 0:02:40]}  Rc8 {[%clk 0:01:24]} 23. g3 {[%clk 0:02:35]}  Rc4 {[%clk 0:01:20]} 24. Bd3 {[%clk 0:02:28]}  Ra4 {[%clk 0:01:20]} 25. h4 {[%clk 0:02:28]}  Rxa2 {[%clk 0:01:18]} 26. Kg2 {[%clk 0:02:29]}  g6 {[%clk 0:01:17]} 27. Kf3 {[%clk 0:02:29]}  Ra1 {[%clk 0:01:12]} 28. Rxa1 {[%clk 0:02:26]}  Bxa1 {[%clk 0:01:13]} 29. c4 {[%clk 0:02:10]}  b4 {[%clk 0:01:03]} 30. Bc2 {[%clk 0:02:10]}  Bd4 {[%clk 0:01:02]} 31. g4 {[%clk 0:02:06]}  d6 {[%clk 0:00:51]} 32. gxh5 {[%clk 0:02:05]}  gxh5 {[%clk 0:00:52]} 33. Ke4 {[%clk 0:02:00]}  Bf2 {[%clk 0:00:51]} 34. Bd1 {[%clk 0:02:00]}  Bxh4 {[%clk 0:00:48]} 35. Bxh5 {[%clk 0:02:01]}  b3 {[%clk 0:00:48]} 36. Bd1 {[%clk 0:02:01]}  b2 {[%clk 0:00:48]} 37. Bc2 {[%clk 0:02:02]}  dxe5 {[%clk 0:00:45]} 38. fxe5 {[%clk 0:02:02]}  Bf2 {[%clk 0:00:41]} 39. Bb1 {[%clk 0:02:01]}  a5 {[%clk 0:00:40]} 40. Kd3 {[%clk 0:01:54]}  a4 {[%clk 0:00:40]} 41. Kc3 {[%clk 0:01:53]}  a3 {[%clk 0:00:39]} 42. Kb4 {[%clk 0:01:48]}  Bd4 {[%clk 0:00:36]} 43. Kxa3 {[%clk 0:01:47]}  Bxe5 {[%clk 0:00:36]} 44. c5 {[%clk 0:01:48]}  f5 {[%clk 0:00:34]} 45. Kb4 {[%clk 0:01:38]}  f4 {[%clk 0:00:34]} 46. Kc4 {[%clk 0:01:39]}  f3 {[%clk 0:00:34]} 47. Kd3 {[%clk 0:01:39]}  Bd4 {[%clk 0:00:32]} 48. Ba2 {[%clk 0:01:31]}  e5 {[%clk 0:00:29]} 49. c6 {[%clk 0:01:28]}  Kd6 {[%clk 0:00:29]} 50. Ke4 {[%clk 0:01:28]}  f2 {[%clk 0:00:28]} 51. Kf3 {[%clk 0:01:28]}  f1=Q+ {[%clk 0:00:27]} 0-1


[Site "https://www.chess.com"]

[Event "Titled Tuesday Blitz June 21 Early 2022"]
[White "Dushyant Sharma"]
[Black "Wagner, Dennis"]
[WhiteFideId "25065130"]
[BlackFideId "24650684"]
[WhiteElo "2105"]
[BlackElo "2355"]
[Result "0-1"]
[Round "04"]
[TimeControl "180+1"]
[Date "2022.06.21"]
[WhiteClock "0:00:07"]
[BlackClock "0:00:22"]

1. e4 {[%clk 0:03:00]}  c5 {[%clk 0:02:59]} 2. Nf3 {[%clk 0:02:59]}  d6 {[%clk 0:03:00]} 3. d4 {[%clk 0:02:58]}  cxd4 {[%clk 0:03:01]} 4. Nxd4 {[%clk 0:02:59]}  Nf6 {[%clk 0:03:01]} 5. Nc3 {[%clk 0:03:00]}  a6 {[%clk 0:03:02]} 6. f4 {[%clk 0:03:01]}  e5 {[%clk 0:03:02]} 7. Nf3 {[%clk 0:03:01]}  Nbd7 {[%clk 0:03:01]} 8. Bd3 {[%clk 0:03:02]}  Qc7 {[%clk 0:03:01]} 9. O-O {[%clk 0:03:02]}  Be7 {[%clk 0:02:58]} 10. a4 {[%clk 0:03:02]}  Nc5 {[%clk 0:02:56]} 11. Kh1 {[%clk 0:03:02]}  b6 {[%clk 0:02:37]} 12. Qe1 {[%clk 0:03:01]}  Bb7 {[%clk 0:02:36]} 13. Bd2 {[%clk 0:03:01]}  O-O {[%clk 0:02:35]} 14. b4 {[%clk 0:03:01]}  Nxd3 {[%clk 0:02:32]} 15. cxd3 {[%clk 0:03:02]}  Rfe8 {[%clk 0:02:30]} 16. Nh4 {[%clk 0:02:56]}  d5 {[%clk 0:02:14]} 17. Nf5 {[%clk 0:02:40]}  Bxb4 {[%clk 0:02:11]} 18. Nxd5 {[%clk 0:02:09]}  Nxd5 {[%clk 0:02:09]} 19. Bxb4 {[%clk 0:02:04]}  exf4 {[%clk 0:02:09]} 20. Bd6 {[%clk 0:01:53]}  Qd7 {[%clk 0:02:07]} 21. Bxf4 {[%clk 0:01:42]}  Nxf4 {[%clk 0:02:00]} 22. Rxf4 {[%clk 0:01:39]}  Qxd3 {[%clk 0:02:00]} 23. Ng3 {[%clk 0:01:22]}  Rad8 {[%clk 0:01:53]} 24. Qf2 {[%clk 0:01:19]}  Bxe4 {[%clk 0:01:44]} 25. Rxf7 {[%clk 0:01:10]}  Bg6 {[%clk 0:01:26]} 26. Rf3 {[%clk 0:01:04]}  Qd4 {[%clk 0:01:26]} 27. Qa2+ {[%clk 0:01:02]}  Kh8 {[%clk 0:01:23]} 28. Raf1 {[%clk 0:01:01]}  h6 {[%clk 0:01:23]} 29. Qb3 {[%clk 0:00:55]}  Kh7 {[%clk 0:01:22]} 30. h3 {[%clk 0:00:52]}  Rd6 {[%clk 0:01:07]} 31. Nf5 {[%clk 0:00:47]}  Bxf5 {[%clk 0:01:04]} 32. Rxf5 {[%clk 0:00:48]}  Re2 {[%clk 0:00:58]} 33. Rf8 {[%clk 0:00:38]}  Qd5 {[%clk 0:00:59]} 34. Qb1+ {[%clk 0:00:33]}  Qe4 {[%clk 0:00:49]} 35. Qxe4+ {[%clk 0:00:13]}  Rxe4 {[%clk 0:00:49]} 36. R8f4 {[%clk 0:00:12]}  Rdd4 {[%clk 0:00:33]} 37. Rxe4 {[%clk 0:00:11]}  Rxe4 {[%clk 0:00:33]} 38. Rb1 {[%clk 0:00:12]}  Re6 {[%clk 0:00:34]} 39. Kh2 {[%clk 0:00:10]}  Kg6 {[%clk 0:00:35]} 40. Kg3 {[%clk 0:00:11]}  Kf5 {[%clk 0:00:34]} 41. Kf3 {[%clk 0:00:11]}  Kf6 {[%clk 0:00:30]} 42. Kf4 {[%clk 0:00:10]}  g5+ {[%clk 0:00:28]} 43. Kf3 {[%clk 0:00:10]}  Ke7 {[%clk 0:00:25]} 44. Rd1 {[%clk 0:00:10]}  Rd6 {[%clk 0:00:22]} 45. Rc1 {[%clk 0:00:09]}  Kd7 {[%clk 0:00:22]} 46. g3 {[%clk 0:00:07]}  b5 {[%clk 0:00:22]} 0-1


[Site "https://www.chess.com"]

[Event "Titled Tuesday Blitz June 21 Early 2022"]
[White "Eggleston, Thomas A"]
[Black "Lorente Serrano, Rosa Adela"]
[WhiteFideId "412139"]
[BlackFideId "32091982"]
[WhiteElo "2174"]
[BlackElo "1820"]
[Result "1-0"]
[Round "04"]
[TimeControl "180+1"]
[Date "2022.06.21"]
[WhiteClock "0:01:51"]
[BlackClock "0:01:32"]

1. e4 {[%clk 0:03:00]}  c5 {[%clk 0:02:59]} 2. Nf3 {[%clk 0:03:00]}  d6 {[%clk 0:02:58]} 3. Bb5+ {[%clk 0:02:59]}  Bd7 {[%clk 0:02:57]} 4. Bxd7+ {[%clk 0:02:56]}  Nxd7 {[%clk 0:02:57]} 5. O-O {[%clk 0:02:54]}  Ngf6 {[%clk 0:02:55]} 6. Re1 {[%clk 0:02:54]}  Qc7 {[%clk 0:02:53]} 7. a3 {[%clk 0:02:53]}  e6 {[%clk 0:02:52]} 8. b4 {[%clk 0:02:53]}  Be7 {[%clk 0:02:44]} 9. Bb2 {[%clk 0:02:53]}  O-O {[%clk 0:02:42]} 10. d3 {[%clk 0:02:45]}  Rac8 {[%clk 0:02:22]} 11. c4 {[%clk 0:02:34]}  d5 {[%clk 0:02:05]} 12. e5 {[%clk 0:02:29]}  Nh5 {[%clk 0:02:02]} 13. cxd5 {[%clk 0:02:28]}  cxb4 {[%clk 0:01:59]} 14. d6 {[%clk 0:02:25]}  Bxd6 {[%clk 0:01:58]} 15. exd6 {[%clk 0:02:25]}  Qxd6 {[%clk 0:01:58]} 16. Ne5 {[%clk 0:02:11]}  Nf4 {[%clk 0:01:51]} 17. Nxd7 {[%clk 0:01:54]}  Qxd7 {[%clk 0:01:47]} 18. Qg4 {[%clk 0:01:51]}  Nxd3 {[%clk 0:01:32]} 19. Qxg7# {[%clk 0:01:51]} 1-0


[Site "https://www.chess.com"]